[Event "44th Chess Olympiad Women 2022"]
[Site "Chennai"]
[Date "2022.08.01"]
[Round "4.2"]
[White "Salimova, Nurgyul"]
[Black "Muzychuk, Mariya"]
[Result "1/2-1/2"]
[WhiteElo "2416"]
[BlackElo "2540"]
[Annotator "TA"]
[PlyCount "162"]
[EventDate "2022.??.??"]
[TimeControl "60"]

{[%evp 15,162,1,0,-17,-8,-11,11,1,-4,-52,-47,-63,-26,-34,0,0,0,0,0,0,-5,-8,-1,
-6,-6,-12,-8,-10,-6,-22,-28,-32,-31,-27,-28,-37,-27,-28,0,0,0,-1,0,0,0,-4,-2,
-23,-15,-52,-57,-77,0,-2,-4,-42,-4,-33,-17,-39,-11,-33,-35,-212,-32,-32,-32,
-32,-32,-32,-32,-32,-32,-32,-32,-32,-8,-25,-25,-25,-25,-25,-25,-25,-25,-25,-25,
-31,-31,-31,-31,-31,-31,-31,-16,-16,-16,-16,-16,-16,-8,-8,-8,-8,-8,-8,-8,-8,-8,
-8,-8,-8,-8,-8,-8,-8,-8,-8,-8,-8,-8,-8,-8,-8,-8,-8,-8,-8,-8,-8,-8,-8,-8,-8,-8,
-8,-8,-8,-8,-8,0,0,0,0,0,0,0,0,0]} 1. d4 {[%emt 0:00:03]} Nf6 {[%emt 0:00:17]}
2. c4 {[%emt 0:00:12]} g6 {[%emt 0:00:16]} 3. Nc3 {[%emt 0:00:14]} d5 {[%emt 0:
00:00]} 4. cxd5 {[%emt 0:00:44]} Nxd5 {[%emt 0:00:04]} 5. e4 {[%emt 0:00:14]}
Nxc3 {[%emt 0:00:14]} 6. bxc3 {[%emt 0:00:06]} Bg7 {[%emt 0:00:08]} 7. Nf3 {
[%emt 0:00:49]} c5 {[%emt 0:01:12]} 8. Bb5+ {[%emt 0:00:31]} Nc6 {[%emt 0:00:
00][%cal Rc5d4] 8...Nc6 is better than 8...Bd7.} 9. d5 {[%emt 0:02:29] D85:
Exchange Grünfeld: Unusual White 7th moves and lines with 7 Nf3.} Qa5 {
[%emt 0:38:23]} 10. Rb1 {[%emt 0:03:16]} (10. Bxc6+ bxc6 11. O-O Ba6 $15) 10...
a6 {[%emt 0:00:09]} 11. Bxc6+ {[%emt 0:03:13]} bxc6 {[%emt 0:00:05]} 12. dxc6 {
[%emt 0:01:53]} (12. O-O $11 {feels stronger.}) 12... Qxc3+ $15 {[%emt 0:05:53]
[#]} 13. Nd2 $146 {[%emt 0:11:19] [#] Threatens to win with Bb2.} ({
Predecessor:} 13. Bd2 Qd3 14. c7 O-O 15. Rb3 Qxe4+ 16. Re3 Qc6 17. Ba5 Qb5 18.
Qd2 Bf5 19. Re2 {0-1 (29) Marn,J (2238)-Preotu,R (2485) Chess.com INT 2021})
13... O-O {[%emt 0:01:28]} (13... Qd3 $5 {[%cal Rg7c3]} 14. Qe2 Qd6 $15) 14.
Bb2 {[%emt 0:02:27]} Qa5 {[%emt 0:06:01]} (14... Qd3 $5 {[%cal Rg7h6]} 15. Qb3
Qd6 $11) 15. Bxg7 {[%emt 0:00:14]} Kxg7 {[%emt 0:00:03]} 16. O-O {[%emt 0:00:
00]} Be6 {[%emt 0:01:52] Against Nc4} 17. Nb3 {[%emt 0:03:07]} Bxb3 {[%emt 0:
00:00]} 18. Qxb3 {[%emt 0:01:13]} Rac8 {[%emt 0:00:16]} 19. Qb2+ {[%emt 0:00:
00]} Kg8 {[%emt 0:06:50]} 20. Qb6 {[%emt 0:01:45]} Qa4 {[%emt 0:00:27]} 21. c7
{[%emt 0:03:51]} Qd7 {[%emt 0:00:07]} 22. Qxc5 {[%emt 0:00:35]} Rxc7 {[%emt 0:
00:00]} 23. Qa5 {[%emt 0:02:55]} Rc6 {[%emt 0:01:00]} 24. Rfe1 {[%emt 0:17:38]}
Rfc8 {[%emt 0:03:01]} 25. h3 {[%emt 0:01:16]} Qe6 {[%emt 0:02:20]} 26. Qd5 {
[%emt 0:02:58]} Rc2 {[%emt 0:03:42]} 27. Qxe6 {[%emt 0:01:14]} fxe6 $11 {
[%emt 0:00:03] Endgame KRR-KRR} 28. Rb7 {[%emt 0:07:18]} Kf7 {[%emt 0:00:50]}
29. Re3 {[%emt 0:04:52]} Rxa2 {[%emt 0:02:11] Hoping for ... Rc1+.} 30. Rf3+ {
[%emt 0:00:51]} Ke8 {[%emt 0:00:22]} 31. e5 {[%emt 0:01:55]} Re2 {[%emt 0:06:
29]} 32. Rb6 {[%emt 0:03:44]} a5 {[%emt 0:01:41]} 33. Rxe6 {[%emt 0:01:17]} Rc5
{[%emt 0:01:42]} ({Black should play} 33... Ra8 $17) 34. Ra6 {[%emt 0:02:00]}
Rexe5 {[%emt 0:00:09]} 35. Ra3 {[%emt 0:01:35]} Kf7 {[%emt 0:00:42]} 36. Ra7 {
[%emt 0:01:08]} h5 {[%emt 0:00:14]} 37. Ra4 {[%emt 0:00:00]} Rf5 {[%emt 0:00:
46]} 38. f4 {[%emt 0:00:55]} Rf6 {[%emt 0:00:31]} 39. g3 $2 {[%emt 0:01:52] [#]
} (39. h4 $15) 39... Re6 $2 {[%emt 0:00:43]} (39... Rc1+ $1 $19 40. Kf2 Rc2+
41. Ke3 Rc3+ 42. Kf2 Rb6) 40. R7xa5 $15 {[%emt 0:00:00]} Rc2 {[%emt 0:00:12]
[%cal Re6e1]} 41. Ra1 {[%emt 0:33:16] Prevents Re1+.} Ree2 {[%emt 0:03:07]
aiming for ...Rg2+.} 42. Rg5 $1 {[%emt 0:00:00]} Rg2+ {[%emt 0:10:01]} 43. Kh1
$1 {[%emt 0:00:00]} Rh2+ {[%emt 0:00:14]} 44. Kg1 {[%emt 0:00:00]} Rcg2+ {
[%emt 0:09:33]} ({Much weaker is} 44... Rxh3 $6 45. Ra3 $17) 45. Kf1 {[%emt 0:
00:00]} h4 {[%emt 0:02:11]} 46. Re1 {[%emt 0:00:00]} Rf2+ {[%emt 0:02:39]} ({
Much worse is} 46... Rxg3 $6 47. Rxg3 hxg3 48. Re3 $17) 47. Kg1 {[%emt 0:00:00]
} Rhg2+ {[%emt 0:00:22]} 48. Kh1 {[%emt 0:00:00]} Rxg3 {[%emt 0:01:00]} 49.
Rxg3 {[%emt 0:00:00]} hxg3 $11 {[%emt 0:00:04] KR-KR} 50. Re4 {[%emt 0:00:00]}
Kf6 {[%emt 0:00:48] Strongly threatening ...Rh2+.} 51. Kg1 {[%emt 0:00:00]} e6
{[%emt 0:00:10]} 52. Kh1 {[%emt 0:00:00]} Rd2 {[%emt 0:00:00]} 53. Kg1 {
[%emt 0:00:02]} Rh2 {[%emt 0:00:19]} 54. Re3 {[%emt 0:01:12]} Rxh3 {[%emt 0:01:
10] White must now prevent ...Rh2.} 55. Kg2 {[%emt 0:00:06][%csl Yg3,Yh3] The
position is equal.} Rh5 {[%emt 0:00:06]} 56. Kxg3 {[%emt 0:00:11]} Rf5 {
[%emt 0:01:43]} 57. Kg4 {[%emt 0:00:41]} g5 {[%emt 0:00:00]} 58. fxg5+ {
[%emt 0:00:09]} Rxg5+ {[%emt 0:00:04]} 59. Kf4 {[%emt 0:00:53]} Rf5+ {[%emt 0:
00:03]} 60. Kg4 {[%emt 0:00:19]} Rf1 {[%emt 0:00:10]} 61. Kg3 $1 {[%emt 0:00:
17]} Rb1 {[%emt 0:02:25]} 62. Kf3 {[%emt 0:00:51]} Kf5 {[%emt 0:00:00]} 63. Ra3
{[%emt 0:00:12]} e5 {[%emt 0:00:06]} 64. Ke3 {[%emt 0:00:14]} Rb4 {[%emt 0:00:
12]} 65. Ke2 {[%emt 0:00:17]} Re4+ {[%emt 0:00:10]} 66. Kf3 {[%emt 0:00:23]}
Rh4 {[%emt 0:00:07]} 67. Ke2 {[%emt 0:00:12]} Rh2+ {[%emt 0:00:00]} 68. Ke1 {
[%emt 0:00:23]} Kf4 {[%emt 0:00:02]} 69. Ra4+ {[%emt 0:00:28]} e4 {[%emt 0:00:
17] ( -> ...Kf3)} 70. Ra3 {[%emt 0:00:08]} Rg2 {[%emt 0:00:06]} 71. Rc3 {
[%emt 0:00:29]} Ra2 {[%emt 0:00:20]} 72. Rb3 {[%emt 0:00:11]} Ke5 {[%emt 0:00:
11]} 73. Rh3 {[%emt 0:00:44]} Kd4 {[%emt 0:00:23]} 74. Rg3 {[%emt 0:00:00]}
Ra1+ {[%emt 0:00:49]} 75. Ke2 {[%emt 0:00:05]} Rh1 {[%emt 0:00:12]} 76. Ra3 {
[%emt 0:00:14]} Rh2+ {[%emt 0:00:15]} 77. Ke1 {[%emt 0:00:27]} e3 {[%emt 0:00:
17]} 78. Ra8 {[%emt 0:00:09]} Kd3 {[%emt 0:00:16][%cal Rh2h1]} 79. Rd8+ {
[%emt 0:00:06]} Ke4 {[%emt 0:00:05]} 80. Re8+ {[%emt 0:00:06]} Kd3 {[%emt 0:00:
10][%cal Rh2h1]} (80... Kf3 $5 81. Rf8+ Kg4 $11) 81. Rd8+ {[%emt 0:00:00]} Ke4
{[%emt 0:00:03] Weighted Error Value: White=0.14 (very precise) / Black=0.14 
(very precise)} 1/2-1/2

[Event "44th Chess Olympiad Women 2022"]
[Site "Chennai"]
[Date "2022.08.01"]
[Round "4.3"]
[White "Dzagnidze, Nana"]
[Black "Karavade, Eesha"]
[Result "1-0"]
[WhiteElo "2531"]
[BlackElo "2339"]
[Annotator "TA"]
[PlyCount "67"]
[EventDate "2022.??.??"]
[TimeControl "60"]

{[%evp 15,67,18,20,4,4,0,0,0,28,18,32,15,12,24,20,40,35,6,99,92,103,56,55,45,
166,150,140,102,98,96,179,186,185,185,170,162,330,318,396,389,661,647,666,664,
627,619,681,655,5052,4627,2092,2160,29998,29999]} 1. d4 {[%emt 0:00:06]} d5 {
[%emt 0:00:21]} 2. c4 {[%emt 0:00:08]} c6 {[%emt 0:00:21]} 3. cxd5 {[%emt 0:00:
00]} cxd5 {[%emt 0:00:10]} 4. Nc3 {[%emt 0:00:01]} Nf6 {[%emt 0:00:36]} 5. Bf4
{[%emt 0:00:15]} Nc6 {[%emt 0:00:42]} 6. e3 {[%emt 0:00:12]} a6 {[%emt 0:00:34]
} 7. Rc1 {[%emt 0:00:31]} Bf5 {[%emt 0:07:34]} 8. Nf3 {[%emt 0:00:07]} Rc8 {
[%emt 0:00:07]} 9. Ne5 {[%emt 0:00:07] D13: Slav Defence: Exchange variation
without ...Bf5.} Nxe5 {[%emt 0:34:47]} 10. dxe5 $1 {[%emt 0:04:46] 10.dxe5 is
better than 10.Bxe5.} Ne4 {[%emt 0:01:28]} 11. Nxe4 {[%emt 0:01:21] The
position is equal.} Rxc1 {[%emt 0:02:14]} 12. Qxc1 {[%emt 0:00:18] Threatens
to win with Ng3.} dxe4 {[%emt 0:03:31]} 13. Be2 {[%emt 0:04:03]} Qa5+ {[%emt 0:
00:00]} 14. Qd2 {[%emt 0:19:06]} Qxd2+ {[%emt 0:01:47]} 15. Kxd2 {[%emt 0:00:
00]} e6 {[%emt 0:01:47]} 16. Kc3 {[%emt 0:05:59]} Kd7 {[%emt 0:04:19]} (16...
Be7 $11 {remains equal.}) 17. Rd1+ $16 {[%emt 0:01:55] [#]} Kc7 $146 {[%emt 0:
00:00]} ({Predecessor:} 17... Kc8 18. Bg5 Bc5 19. Kc4 Bb6 20. Be7 Bc7 21. Bd6
f6 22. a4 fxe5 23. Kc5 Bg6 {½-½ (49) Lesiege,A (2535)-Charbonneau,P (2442)
Montreal 2003}) 18. g4 {[%emt 0:06:59]} (18. Bg5 $16) 18... Bg6 $14 {[%emt 0:
00:00]} 19. Bg5 $36 {[%emt 0:01:49] White has the initiative.} h6 {[%emt 0:05:
33]} (19... h5 $14) 20. Bd8+ $18 {[%emt 0:13:19]} Kc8 {[%emt 0:00:00]} 21. h4 {
[%emt 0:03:10] White is more active.} Bc5 {[%emt 0:09:30]} 22. Ba5 {[%emt 0:00:
07]} h5 {[%emt 0:03:59]} (22... Ba7 $16) 23. gxh5 $1 {[%emt 0:00:00]} Bf5 {
[%emt 0:02:37] [#]} (23... Bxh5 $2 24. Bxh5 b6 25. Bxf7 $1 bxa5 26. Bxe6+ Kb8
27. Rg1 $18) 24. Bb4 $1 {[%emt 0:09:30]} Bb6 {[%emt 0:03:15]} 25. Bd6 {[%emt 0:
01:26]} Bd8 $2 {[%emt 0:01:12] [#]} (25... g6 26. hxg6 fxg6) 26. b4 $1 {
[%emt 0:05:44]} b5 {[%emt 0:03:32]} (26... Bxh4 27. b5 Kd7 28. bxa6 (28. Bf8+
Kc7 $16) 28... bxa6 29. Bxa6 (29. Bf8+ Kc6 $16)) 27. a4 {[%emt 0:00:30]} Bxh4
$2 {[%emt 0:01:20]} (27... Kb7 28. axb5 axb5) 28. axb5 {[%emt 0:01:28]} axb5 {
[%emt 0:00:06]} 29. Bxb5 {[%emt 0:01:10]} Kb7 {[%emt 0:00:04] Against Bc6+} 30.
Bc5 {[%emt 0:01:03] White threatens Rd7+ and mate.} Rd8 {[%emt 0:00:18]} 31.
Ra1 {[%emt 0:01:24] White wants to mate with Ra7+.} Bxf2 {[%emt 0:01:16]} 32.
Ra7+ {[%emt 0:00:05]} Kb8 {[%emt 0:00:09]} 33. Rxf7 {[%emt 0:00:41] Ba7+ would
kill now.} Bg3 {[%emt 0:02:42]} 34. Ba7+ {[%emt 0:00:14] Weighted Error Value:
White=0.07 (flawless) /Black=0.72} 1-0

[Event "44th Chess Olympiad Women 2022"]
[Site "Chennai"]
[Date "2022.08.01"]
[Round "4.3"]
[White "Javakhishvili, Lela"]
[Black "Sahithi Varshini M"]
[Result "1-0"]
[WhiteElo "2476"]
[BlackElo "2312"]
[Annotator "TA"]
[PlyCount "23"]
[EventDate "2022.??.??"]
[TimeControl "60"]

{[%evp 12,23,49,44,189,189,261,254,264,241,264,252,252,249]} 1. d4 {[%emt 0:00:
00]} Nf6 {[%emt 0:00:08]} 2. c4 {[%emt 0:00:07]} e6 {[%emt 0:00:05]} 3. Nf3 {
[%emt 0:00:11]} b6 {[%emt 0:00:07]} 4. g3 {[%emt 0:00:11]} Ba6 {[%emt 0:02:03]}
5. Nbd2 {[%emt 0:00:48]} Bb7 {[%emt 0:01:52]} 6. Bg2 {[%emt 0:00:15]} c5 {
[%emt 0:03:24]} 7. e4 {[%emt 0:02:50] 7.0-0 is the hot move.} Nxe4 {[%emt 0:00:
00] E15: Queen's Indian: 4 g3 sidelines, 4 g3 Ba6 and 4 g3 Bb7 early
deviations.} (7... cxd4 $14 8. O-O d6) 8. Ne5 $18 {[%emt 0:01:27]} Nc3 {
[%emt 0:02:40] [#]} (8... Nxf2 {keeps fighting.} 9. Kxf2 Nc6) 9. Qh5 $1 {
[%emt 0:03:26][%csl Ge5][%cal Rh5f7]} g6 {[%emt 0:02:01]} 10. Qh3 {[%emt 0:00:
00] [#]} Bxg2 $146 {[%emt 0:08:25]} ({Predecessor:} 10... cxd4 11. bxc3 dxc3
12. Ne4 d5 13. Ng5 Qf6 14. Ngxf7 Bc5 15. O-O Rf8 16. Bg5 Qf5 17. g4 Qc2 18.
Qxh7 {1-0 (18) Kantarji,P (2440)-Krayz,A (2359) Israel 2020}) 11. Qxg2 {
[%emt 0:00:09]} Na6 {[%emt 0:00:20][%cal Ya6b4]} 12. bxc3 {[%emt 0:03:01]
Black got outplayed after the opening. Weighted Error Value: White=0.00 
(flawless) /Black=0.66} 1-0

[Event "44th Chess Olympiad Women 2022"]
[Site "Chennai"]
[Date "2022.08.01"]
[Round "4.3"]
[White "Nandhidhaa, P V.."]
[Black "Batsiashvili, Nino"]
[Result "1-0"]
[WhiteElo "2312"]
[BlackElo "2466"]
[Annotator "TA"]
[PlyCount "83"]
[EventDate "2022.??.??"]
[TimeControl "60"]

{[%evp 16,83,39,48,38,43,45,37,63,47,45,37,35,22,31,25,27,19,27,18,40,36,42,36,
40,37,68,52,47,59,59,51,47,53,62,53,88,74,91,61,68,62,63,39,111,38,38,62,147,
146,163,93,102,67,352,307,399,388,465,466,472,440,559,562,799,777,953,929,1382,
1341]} 1. Nf3 {[%emt 0:00:34]} d5 {[%emt 0:00:10]} 2. d4 {[%emt 0:00:11]} c5 {
[%emt 0:02:50]} 3. c4 {[%emt 0:01:09]} cxd4 {[%emt 0:01:26]} 4. cxd5 {[%emt 0:
00:00]} Nf6 {[%emt 0:06:34]} 5. Qxd4 {[%emt 0:01:44]} Qxd5 {[%emt 0:00:52]} 6.
Nc3 {[%emt 0:02:46]} Qxd4 {[%emt 0:06:05]} 7. Nxd4 {[%emt 0:01:14]} a6 {
[%emt 0:00:15]} 8. g3 {[%emt 0:10:04]} e5 {[%emt 0:14:03]} 9. Nb3 {[%emt 0:00:
00]} Bd7 {[%emt 0:01:08] 9...Bd7 scores better than 9...Nc6. D06: Queen's
Gambit: Symmetrical and Baltic Defences.} 10. Bg2 {[%emt 0:01:52]} Bc6 {
[%emt 0:00:20]} 11. O-O {[%emt 0:01:05]} Bb4 {[%emt 0:01:08] White is slightly
better.} 12. Bd2 {[%emt 0:02:42][%cal Yc3a4]} Bxg2 {[%emt 0:02:48]} 13. Kxg2 {
[%emt 0:00:06]} Nc6 {[%emt 0:00:07]} 14. a3 {[%emt 0:01:56]} Bxc3 {[%emt 0:00:
00]} 15. Bxc3 {[%emt 0:00:06]} Ne4 {[%emt 0:05:07] [#]} 16. Rac1 $146 {[%emt 0:
00:00]} ({Predecessor:} 16. Rfc1 O-O 17. Be1 Rfd8 18. f3 Nd6 19. Bf2 Nf5 20.
Rd1 Rxd1 21. Rxd1 Rd8 22. Rxd8+ Nxd8 {½-½ (53) Agopov,M (2452)-Nouro,M (2330)
Helsinki 2012}) 16... Ke7 {[%emt 0:04:26]} 17. Ba5 {[%emt 0:06:54]} Nf6 {
[%emt 0:11:53]} 18. Bb6 {[%emt 0:05:13]} Nd7 {[%emt 0:02:26]} 19. Bc5+ {
[%emt 0:04:05]} Nxc5 {[%emt 0:02:59]} 20. Nxc5 {[%emt 0:00:12]} Rhc8 {[%emt 0:
00:00]} 21. Rfd1 {[%emt 0:10:39]} Nd8 {[%emt 0:05:46]} 22. Rd7+ {[%emt 0:08:35]
} Ke8 {[%emt 0:00:33] [#] White must now prevent ...b6.} 23. Rd5 {[%emt 0:00:
00]} f6 {[%emt 0:03:38]} 24. Rcd1 $36 {[%emt 0:02:02] Black is under pressure.}
Rc6 {[%emt 0:02:49]} 25. b4 {[%emt 0:02:22] Rd7 is the strong threat.} Rac8 {
[%emt 0:00:37]} 26. e3 {[%emt 0:04:26]} R6c7 {[%emt 0:02:58]} 27. Kf3 {[%emt 0:
01:55] White is much more active.} Re7 {[%emt 0:00:48]} 28. Rd6 {[%emt 0:02:29]
} Nc6 {[%emt 0:10:20]} 29. R1d5 {[%emt 0:05:04]} Rd8 {[%emt 0:03:33]} (29...
Na7 $14) 30. Ke4 {[%emt 0:03:27]} (30. Rxd8+ $16 Nxd8 31. Rd6) 30... Rc8 $1 $14
{[%emt 0:00:31]} 31. g4 {[%emt 0:02:25]} a5 {[%emt 0:00:00]} ({Black should try
} 31... Na7 $1 $14) 32. b5 $16 {[%emt 0:02:42]} Nd8 {[%emt 0:00:02]} 33. Kd3 {
[%emt 0:00:59]} (33. h4 $18) 33... Nf7 {[%emt 0:02:22]} 34. Re6 {[%emt 0:00:45]
} b6 $2 {[%emt 0:00:49] [#] A mistake that costs the game.} ({Better is} 34...
Rxe6 $14 35. Nxe6 g6) 35. Rxb6 $18 {[%emt 0:00:45]} Rec7 {[%emt 0:00:40]} 36.
Ne4 {[%emt 0:00:30]} Ke7 {[%emt 0:00:00]} 37. Ra6 {[%emt 0:00:19] White is
clearly winning.} Rb8 {[%emt 0:00:49]} 38. a4 {[%emt 0:00:28][%cal Ya3a4,Ya4a5]
} Nd8 {[%emt 0:00:34]} 39. Rxa5 {[%emt 0:00:34]} Rb6 {[%emt 0:00:31]} 40. Ra8 {
[%emt 0:00:33]} Nb7 {[%emt 0:00:25]} 41. a5 {[%emt 0:03:21]} Re6 {[%emt 0:00:
53]} 42. b6 {[%emt 0:00:00] Weighted Error Value: White=0.11 (very precise) /
Black=0.36} 1-0

[Event "44th Chess Olympiad Women 2022"]
[Site "Chennai"]
[Date "2022.08.01"]
[Round "4.3"]
[White "Pratyusha, Bodda"]
[Black "Melia, Salome"]
[Result "0-1"]
[WhiteElo "2310"]
[BlackElo "2384"]
[Annotator "TA"]
[PlyCount "72"]
[EventDate "2022.??.??"]
[TimeControl "60"]

{[%evp 13,72,-11,0,-13,-7,-5,-12,-14,19,-18,-18,-14,-16,-13,0,-16,-12,-17,0,0,
0,-70,-70,-64,21,-59,-52,-92,-76,-90,-72,-165,-167,-170,-164,-383,-383,-516,
-492,-488,-374,-910,-982,-2603,-2520,-2436,-2110,-29989,-29990,-29992,-29993,
-29994,-29993,-29993,-29994,-29994,-29995,-29995,-29996,-29996,-29997]} 1. d4 {
[%emt 0:00:53]} Nf6 {[%emt 0:00:07]} 2. c4 {[%emt 0:00:08]} e6 {[%emt 0:00:49]}
3. Nc3 {[%emt 0:00:12]} Bb4 {[%emt 0:00:36]} 4. e3 {[%emt 0:00:07]} O-O {
[%emt 0:00:59]} 5. Bd3 {[%emt 0:00:21]} d5 {[%emt 0:01:00]} 6. cxd5 {[%emt 0:
00:00]} exd5 {[%emt 0:00:30]} 7. Nge2 {[%emt 0:00:18]} Re8 {[%emt 0:01:41]} 8.
Bd2 {[%emt 0:00:19] E48: Nimzo-Indian: Rubinstein: 5 Bd3 d5 including 6 Ne2,
but excluding 6 a3.} Bd6 {[%emt 0:03:44]} 9. Rc1 {[%emt 0:01:00]} a6 {[%emt 0:
00:00] Prevents Nb5.} 10. O-O {[%emt 0:05:36] The position is equal.} b6 {
[%emt 0:06:55]} 11. f3 {[%emt 0:02:05]} c5 {[%emt 0:00:36]} 12. Qe1 {[%emt 0:
00:00]} Nc6 {[%emt 0:04:28]} 13. Qh4 {[%emt 0:02:19]} h6 {[%emt 0:01:02]} 14.
Kh1 {[%emt 0:01:55] [#]} a5 $146 {[%emt 0:16:19]} ({Predecessor:} 14... Ra7 15.
g4 Be7 16. Qf2 Rc7 17. Ng3 Bf8 18. Kg2 g6 19. h4 Bg7 20. Nce2 Qd6 {½-½ (41)
Rakhmanov,A (2489)-Rasmussen,A (2519) Athens 2008}) 15. Rfd1 {[%emt 0:05:36]}
Ba6 {[%emt 0:07:37]} 16. Bxa6 {[%emt 0:07:45]} Rxa6 {[%emt 0:00:09][%cal Ya8a6,
Ya6c6,Yc6c2]} 17. dxc5 {[%emt 0:01:59]} ({White should try} 17. a3 $11) 17...
bxc5 $15 {[%emt 0:04:51]} 18. Na4 {[%emt 0:07:48]} Nb4 {[%emt 0:18:59]} ({
Black should play} 18... Qe7 $15) 19. Bxb4 {[%emt 0:09:30]} (19. Nxc5 $11 Rb6
20. Na4) 19... cxb4 {[%emt 0:01:18]} 20. Rd3 {[%emt 0:04:07] [#] White is now
going downhill.} Qd7 $1 {[%emt 0:03:46]} 21. b3 {[%emt 0:04:07]} Rc6 {[%emt 0:
00:00]} 22. Rcd1 {[%emt 0:04:29]} (22. Rxc6 $17 Qxc6 23. Qe1) 22... Rc2 $19 {
[%emt 0:01:53][%csl Ya2,Ye2]} 23. Qe1 {[%emt 0:10:14]} Rxa2 {[%emt 0:02:05]}
24. Rc1 $2 {[%emt 0:01:48]} (24. Nd4 {keeps fighting.}) 24... Qf5 {[%emt 0:00:
00]} 25. Qd1 {[%emt 0:03:49]} Qh5 {[%emt 0:01:47][%csl Gd6][%cal Rh5h2]} 26. h3
{[%emt 0:01:30]} Qh4 {[%emt 0:07:22] White must now prevent ...Qf2.} 27. Rc6 $2
{[%emt 0:03:50]} (27. Kg1 Qg5 28. Rc2 Rxc2 29. Qxc2) 27... Qf2 {[%emt 0:01:27]
[%csl Ye2,Ye3]} 28. Rd2 {[%emt 0:05:16]} Rxd2 {[%emt 0:00:19]} 29. Qxd2 {
[%emt 0:00:03]} Rxe3 {[%emt 0:02:33][%cal Yf6h5] ( -> ...Nh5!)} 30. Rc8+ {
[%emt 0:02:50]} Kh7 {[%emt 0:00:36] Black mates.} 31. Rc2 {[%emt 0:00:50] [#]}
Ne4 $1 {[%emt 0:03:14][%cal Yf6e4,Ye4g3,Yg3e2]} 32. Qd1 {[%emt 0:00:00] [#]} (
32. Qxe3 Qe1+) 32... Rxe2 $1 {[%emt 0:00:45]} 33. Rxe2 {[%emt 0:00:00]} Ng3+ {
[%emt 0:00:19]} 34. Kh2 {[%emt 0:00:01]} Nxe2+ {[%emt 0:00:11]} 35. Kh1 {
[%emt 0:00:01] [#]} Qg3 $1 {[%emt 0:01:08][%csl Gd6][%cal Rg3h2]} 36. Qc2+ {
[%emt 0:00:41]} g6 {[%emt 0:00:07] Weighted Error Value: White=0.79/Black=0.15
(very precise)} 0-1